bitfinex-derivatives/quotes_ETHF0:USTF0_20240904
["timestamp","ask_amount","ask_price","bid_price","bid_amount"]
[1725459403455,0.42107903,2410.6,2410.2,0.00621903]
[1725459403652,0.00621903,2410.6,2410.2,0.00621903]
[1725459403848,0.42107903,2410.6,2410.2,0.00621903]
[1725459404347,0.00621903,2410.6,2410.5,0.41487]
[1725459405053,0.00621903,2410.6,2410.5,10.56367]
[1725459405356,3.2078,2411.9,2410.7,1.03708]
[1725459405654,0.41467,2411.7,2411.0,0.41477]
[1725459405949,0.88735,2411.8,2411.2,0.41474]
[1725459406150,0.42088903,2411.7,2411.1,0.41476]
[1725459406452,0.00621903,2411.7,2411.2,0.41475]
[1725459406746,0.00621903,2411.7,2411.1,3.2078]
[1725459406747,0.41469,2411.6,2411.1,3.2078]
[1725459406949,0.00621903,2411.7,2411.2,0.41474]
[1725459407152,0.00621903,2411.7,2411.1,3.2078]
[1725459407450,0.00621903,2411.7,2411.6,0.41468]
[1725459407652,0.00621903,2411.7,2411.6,4.56108]
[1725459408366,0.00621903,2411.7,2411.6,11.59778]
[1725459408367,9.03e-06,2411.7,2411.6,11.59778]
[1725459408748,9.03e-06,2411.7,2411.6,4.1464]
[1725459409069,9.03e-06,2411.7,2411.6,10.56108]
[1725459409351,9.03e-06,2411.7,2411.6,4.56108]
[1725459409546,9.03e-06,2411.7,2411.6,4.1464]
[1725459409739,9.03e-06,2411.7,2411.5,0.41469]
[1725459409945,9.03e-06,2411.7,2411.6,0.41468]
[1725459410345,9.03e-06,2411.7,2411.6,4.56108]
[1725459410552,9.03e-06,2411.7,2411.4,3.21401903]
[1725459410758,9.03e-06,2411.7,2411.5,4.1464]
[1725459410947,9.03e-06,2411.7,2411.6,0.41468]
[1725459411256,9.03e-06,2411.7,2411.6,4.56108]
[1725459411460,9.03e-06,2411.7,2411.6,10.56108]
[1725459411650,9.03e-06,2411.7,2411.6,4.56108]
[1725459411954,9.03e-06,2411.7,2411.6,10.56108]
[1725459412948,9.03e-06,2411.7,2411.6,11.59778]
[1725459413744,7.7663,2412.8,2411.8,1.0366]
[1725459413943,7.7663,2412.8,2411.9,3.2078]
[1725459414146,3.62235,2412.4,2411.9,3.2078]
[1725459414462,0.41455,2412.4,2411.9,3.2078]
[1725459414756,0.00621903,2412.4,2411.9,3.2078]
[1725459415076,0.41456,2412.3,2411.7,0.41465]
[1725459415560,0.41456,2412.3,2411.6,3.2078]
[1725459415561,0.4146,2412.1,2411.6,3.2078]
[1725459415752,3.2078,2412.3,2411.4,0.00621903]
[1725459416054,3.2078,2411.8,2411.4,0.00621903]
[1725459416253,0.4708,2412.0,2411.4,0.00621903]
[1725459416554,0.4708,2412.0,2411.6,0.41467]
[1725459416757,3.6786,2412.0,2411.4,0.00621903]
[1725459417146,3.2078,2411.7,2411.4,0.00621903]
[1725459417462,0.4147,2411.5,2411.4,0.00621903]
[1725459417848,4.1472,2411.5,2410.9,3.2078]
[1725459418054,0.41467,2411.7,2410.9,3.2078]
[1725459418250,7.3248,2411.9,2411.0,0.20993189]
[1725459418552,0.41474,2411.3,2410.5,0.8557]
[1725459418757,4.24456,2411.5,2410.5,0.8557]
[1725459418758,0.41472,2411.4,2410.5,0.8557]
[1725459418961,0.00621903,2411.1,2410.7,0.00621903]
[1725459419259,0.00621903,2411.1,2410.9,0.41479]
[1725459419560,0.00621903,2411.1,2411.0,0.62413122]
[1725459419862,0.00621903,2411.1,2411.0,14.80754]
[1725459420159,0.00621903,2411.1,2411.0,10.56278]
[1725459420354,0.00621903,2411.1,2411.0,10.7673822]
[1725459420557,0.00621903,2411.1,2411.0,4.7673822]
[1725459420755,0.4708,2412.0,2411.0,13.5604022]
[1725459420958,0.4708,2412.0,2411.6,0.41467]
[1725459421153,0.4708,2412.0,2411.4,1.03679]
[1725459421360,0.4708,2412.0,2411.4,0.20920606]
[1725459421654,0.463,2412.2,2411.9,0.41462]
[1725459421847,0.463,2412.2,2411.8,0.20595017]
[1725459422052,0.463,2412.2,2412.0,0.4146]
[1725459422351,4.12321903,2412.3,2412.1,0.41459]
[1725459422551,4.12321903,2412.3,2411.7,1.03666]
[1725459422552,0.00621903,2412.3,2412.0,0.00621903]
[1725459422961,0.00621903,2412.3,2412.1,0.41458]
[1725459423060,0.41459,2412.2,2412.0,0.00621903]
[1725459423265,0.41458,2412.2,2412.0,0.00621903]
[1725459423671,0.00621903,2412.3,2412.0,0.42081903]
[1725459423868,0.00621903,2412.3,2412.0,0.00621903]
[1725459424259,0.42078903,2412.3,2412.0,0.00621903]
[1725459424457,4.1456,2412.2,2411.5,0.41469]
[1725459424755,9.21401903,2412.3,2411.9,0.41462]
[1725459424756,0.00621903,2412.3,2411.9,0.41462]
[1725459424954,0.42078903,2412.3,2411.9,0.41462]
[1725459425151,0.00621903,2412.3,2411.7,0.20543426]
[1725459425354,0.00621903,2412.3,2412.0,0.4146]
[1725459425555,0.00621903,2412.3,2412.1,0.41458]
[1725459426062,0.00621903,2412.3,2411.9,0.00621903]
[1725459426568,0.00621903,2412.3,2412.2,0.41458]
[1725459426766,0.00621903,2412.3,2412.2,6.41458]
[1725459426982,0.00621903,2412.3,2412.2,4.56018]
[1725459427154,0.00621903,2412.3,2412.0,3.2078]
[1725459427452,0.00621903,2412.3,2412.2,0.41458]
[1725459427654,0.00621903,2412.3,2412.1,0.41458]
[1725459427856,0.00621903,2412.3,2412.2,0.41458]
[1725459428056,0.00621903,2412.3,2412.1,0.41458]
[1725459428565,1.04263903,2412.3,2411.9,0.00621903]
[1725459428758,0.41461,2412.0,2411.9,0.00621903]
[1725459428954,4.72836,2412.2,2411.9,0.00621903]
[1725459429171,0.41461,2412.0,2411.9,0.00621903]
[1725459429457,1.03653,2412.0,2411.1,3.2078]
[1725459429659,3.7428,2411.9,2411.2,0.20539224]
[1725459429859,0.535,2411.9,2411.8,0.41464]
[1725459430256,10.6814,2411.9,2410.8,3.2078]
[1725459430455,3.2078,2411.6,2411.1,0.00621903]
[1725459430856,3.2078,2411.2,2411.1,0.42097903]
[1725459431057,0.41472,2411.4,2411.1,0.42097903]
[1725459431260,0.41472,2411.4,2411.1,0.00621903]
[1725459431466,0.9464,2411.5,2411.1,0.00621903]
[1725459431656,0.41472,2411.4,2411.1,0.00621903]
[1725459431859,28.71662,2411.8,2411.4,0.41471]
[1725459431860,26.817,2411.8,2411.4,0.41471]
[1725459432067,23.11465,2411.8,2411.4,0.41471]
[1725459432265,4.1464,2411.7,2411.5,0.41469]
[1725459432570,0.94963,2411.9,2411.1,0.00621903]
[1725459432758,0.535,2411.9,2411.1,3.21401903]
[1725459432959,0.41467,2411.7,2411.1,3.21401903]
[1725459433167,3.2078,2411.7,2411.1,0.00621903]
[1725459433465,0.41472,2411.4,2411.1,0.00621903]
[1725459433768,3.2078,2411.7,2411.1,0.00621903]
[1725459434008,0.41475,2411.2,2411.1,0.00621903]
[1725459434168,3.2078,2411.4,2411.1,0.00621903]
[1725459434169,0.41472,2411.4,2411.1,0.00621903]
[1725459434466,0.41475,2411.2,2411.1,0.00621903]
[1725459434658,4.6774,2411.3,2410.5,3.2078]
[1725459434858,0.94337,2411.1,2410.5,3.2078]
[1725459435061,0.5286,2411.1,2410.5,3.2078]
[1725459435267,0.5286,2411.1,2410.8,0.41481]
[1725459435561,0.5286,2411.1,2411.0,0.41478]
[1725459435765,0.00621903,2411.2,2411.1,0.41476]
[1725459436674,0.00621903,2411.2,2411.1,4.56196]
[1725459436859,0.00621903,2411.2,2411.1,0.41476]
[1725459437060,0.00621903,2411.2,2410.8,3.2078]
[1725459437459,0.00621903,2411.2,2411.1,3.62256]
[1725459437663,0.00621903,2411.2,2411.1,0.62617399]
[1725459437861,0.00621903,2411.2,2411.1,4.77337399]
[1725459438166,0.00621903,2411.2,2410.9,0.41479]
[1725459438368,0.00621903,2411.2,2410.8,3.2078]
[1725459438572,0.42096903,2411.2,2410.8,3.62261]
[1725459438757,4.148,2411.1,2410.4,3.2078]
[1725459438974,0.41486,2410.6,2410.2,0.41491]
[1725459439160,1.043,2411.0,2410.1,3.2078]
[1725459439377,1.043,2411.0,2409.9,1.03743]
[1725459439378,0.5143,2410.9,2409.9,1.03743]
[1725459439662,0.5143,2410.9,2410.1,4.24512]
[1725459439861,0.5143,2410.9,2410.7,0.41483]
[1725459440068,0.5143,2410.9,2410.8,0.41482]
[1725459440265,0.5253,2411.0,2410.4,3.2078]
[1725459440467,0.5253,2411.0,2410.7,0.41482]
[1725459440771,0.5253,2411.0,2410.8,0.41481]
[1725459441763,0.5253,2411.0,2410.7,0.41482]
[1725459441968,0.5253,2411.0,2410.4,3.2078]
[1725459442160,0.41482,2410.8,2410.4,0.41488]
[1725459442359,0.41482,2410.8,2410.0,1.03739]
[1725459442360,0.5253,2411.0,2410.7,0.41482]
[1725459442564,0.5253,2411.0,2410.2,1.03729]
[1725459442763,0.5253,2411.0,2410.6,0.41483]
[1725459442764,0.94009,2411.0,2410.6,0.41483]
[1725459442960,0.4148,2410.9,2410.2,1.03729]
[1725459443161,0.5253,2411.0,2410.2,1.03729]
[1725459443162,0.94009,2411.0,2410.6,0.41484]
[1725459443366,0.41481,2410.9,2410.5,0.41486]
[1725459443558,0.4148,2410.9,2410.6,0.41484]
[1725459443764,0.5253,2411.0,2410.1,3.2078]
[1725459443966,3.2078,2410.8,2409.9,0.14882749]
[1725459444160,3.2078,2410.8,2409.5,4.5172]
[1725459444161,9.02505,2410.4,2409.4,3.2078]
[1725459444356,9.02505,2410.4,2409.1,0.81924401]
[1725459444357,3.2078,2410.0,2409.1,0.4151]
[1725459444558,3.2078,2409.7,2408.9,0.41513]
[1725459444764,3.2078,2409.0,2408.3,0.14993284]
[1725459444969,3.2078,2409.0,2408.0,0.644717]
[1725459444970,3.623,2408.6,2408.0,0.644717]
[1725459445173,3.623,2408.6,2407.6,3.2078]
[1725459445174,4.78621903,2408.5,2407.6,3.2078]
[1725459445363,4.78621903,2408.5,2407.7,0.55449942]
[1725459445564,27.48621903,2408.5,2407.7,0.41534]
[1725459445763,4.78,2408.2,2407.5,0.20305126]
[1725459445967,22.70621903,2408.5,2407.0,0.62814986]
[1725459445968,3.2078,2407.7,2407.0,0.62814986]
[1725459446269,3.2078,2407.7,2406.6,3.2078]
[1725459446270,3.2078,2407.1,2406.7,0.64560564]
[1725459446568,3.2078,2407.1,2405.9,1.07133448]
[1725459446569,3.62331,2406.8,2405.9,3.2078]
[1725459446868,0.00623208,2407.1,2405.9,3.2078]
[1725459446869,0.00623208,2407.1,2406.2,3.2078]
[1725459447468,0.00623208,2407.1,2406.7,0.41552]
[1725459447658,0.00623208,2407.1,2406.1,3.2078]
[1725459447864,0.00623208,2407.1,2406.8,0.41551]
[1725459448071,0.00623208,2407.1,2406.3,3.2078]
[1725459448494,0.00623208,2407.1,2406.6,3.2078]
[1725459448677,0.00623208,2407.1,2406.3,3.2078]
[1725459449170,0.00623208,2407.1,2406.0,3.2078]
[1725459449368,0.41559,2406.3,2405.7,0.82141578]
[1725459449563,3.2078,2406.4,2405.7,0.82141578]
[1725459449564,3.62339,2406.4,2405.7,0.82141578]
[1725459449765,3.7101,2406.4,2405.7,1.23710578]
[1725459450171,0.5023,2406.4,2405.8,0.41568]
[1725459450371,0.5023,2406.4,2405.7,0.82141578]
[1725459450673,3.2078,2407.0,2406.2,3.2078]
[1725459450870,3.2078,2407.0,2405.8,3.2078]
[1725459451062,3.2078,2407.0,2405.9,0.41566]
[1725459451268,3.2078,2407.0,2405.8,3.2078]
[1725459451573,22.7,2406.9,2405.8,3.2078]
[1725459451946,22.7,2406.9,2405.9,0.41566]
[1725459452082,22.7,2406.9,2406.2,0.4156]
[1725459452275,22.7,2406.9,2405.8,3.2078]
[1725459452276,0.41551,2406.8,2405.8,3.2078]
[1725459452477,22.7,2406.9,2405.8,3.2078]
[1725459452663,22.7,2406.9,2406.2,0.41561]
[1725459452862,22.7,2406.9,2406.3,0.41559]
[1725459453072,22.7,2406.9,2405.8,3.2078]
[1725459453264,3.2078,2407.0,2406.1,3.2078]
[1725459453469,0.00623208,2407.1,2406.4,3.2078]
[1725459453665,0.00623208,2407.1,2406.2,3.2078]
[1725459453866,0.42169208,2407.1,2406.3,0.41558]
[1725459454078,0.42169208,2407.1,2406.2,3.2078]
[1725459454079,0.41548,2407.0,2406.2,3.6234]
[1725459454368,0.41551,2406.8,2406.1,0.41562]
[1725459454576,3.2078,2407.0,2406.2,0.41559]
[1725459454871,0.00623208,2407.1,2406.1,3.2078]
[1725459455076,3.21403208,2407.1,2406.1,0.41561]
[1725459455267,3.21403208,2407.1,2405.6,3.2078]
[1725459455268,3.2078,2406.4,2405.8,0.41567]
[1725459455467,1.0387,2407.0,2404.7,3.2078]
[1725459455468,8.1978,2406.1,2404.7,3.2078]
[1725459455671,3.2078,2405.1,2404.7,3.2078]
[1725459455973,0.00623208,2405.1,2404.4,3.2078]
[1725459456280,0.00623208,2405.1,2404.8,0.41585]
[1725459456466,0.00623208,2405.1,2403.8,6.44606]
[1725459456467,1.03963,2404.8,2403.0,0.209]
[1725459456666,5.40597,2404.1,2403.0,0.2108803]
[1725459456869,3.2078,2404.4,2403.9,0.416]
[1725459457164,3.2078,2404.4,2403.1,9.77556855]
[1725459457165,0.00623208,2404.4,2403.1,9.77556855]
[1725459457365,0.00623208,2404.4,2403.4,3.2078]
[1725459457561,0.00623208,2404.4,2404.0,3.2078]
[1725459457769,0.00623208,2404.4,2404.3,0.41594]
[1725459457977,0.00623208,2404.4,2404.3,4.57514]
[1725459459072,0.00623208,2404.4,2404.3,7.78294]
[1725459459377,0.00623208,2404.4,2404.3,10.57514]
[1725459459870,0.00623208,2404.4,2404.3,4.57514]
[1725459460065,3.2078,2405.3,2405.1,0.41579]
[1725459460269,0.93427,2405.9,2404.1,4.6780842]
[1725459460270,0.41573,2405.6,2404.8,0.41584]
[1725459460470,8.1978,2405.7,2404.1,1.4702842]
[1725459460471,3.2078,2405.4,2404.1,3.6381742]
[1725459460670,3.2078,2405.1,2404.1,3.2221742]
[1725459460872,3.2078,2405.5,2404.7,3.2078]
[1725459461066,3.2078,2405.5,2404.6,4.24752]
[1725459461272,0.6974,2406.5,2405.2,3.62358]
[1725459461273,0.00623208,2405.3,2405.2,3.62358]
[1725459461576,0.00623208,2405.3,2405.0,0.41581]
[1725459461875,4.1576,2405.2,2404.4,0.00623208]
[1725459462088,0.00623208,2405.3,2404.7,0.41586]
[1725459462324,0.00623208,2405.3,2404.8,0.41585]
[1725459462472,0.00623208,2405.3,2404.4,0.00623208]
[1725459462669,0.00623208,2405.3,2404.8,0.41584]
[1725459462868,0.00623208,2405.3,2404.4,0.00623208]
[1725459463069,0.00623208,2405.3,2404.6,3.2078]
[1725459463265,0.00623208,2405.3,2404.4,0.00623208]
[1725459463466,8.1978,2405.0,2404.4,0.00623208]
[1725459463673,8.1978,2405.0,2403.5,0.416]
[1725459463674,3.2078,2404.7,2403.5,0.416]
[1725459463870,3.2078,2404.7,2403.7,0.41603]
[1725459463871,0.41593,2404.4,2403.7,0.41603]
[1725459464079,0.41593,2404.4,2403.3,1.168]
[1725459464080,3.2078,2404.4,2403.3,1.168]
[1725459464281,3.2078,2404.4,2403.7,0.41604]
[1725459464472,3.62373,2404.4,2403.3,0.6778]
[1725459464673,0.00623208,2404.1,2403.7,0.41603]
[1725459464882,0.00623208,2404.1,2403.6,0.41605]
[1725459465174,0.00623208,2404.1,2403.3,0.6778]
[1725459465367,0.00623208,2404.1,2403.7,0.41603]
[1725459465574,0.00623208,2404.1,2403.3,0.6778]
[1725459465879,0.00623208,2404.1,2403.5,3.2078]
[1725459466175,0.00623208,2404.1,2403.8,0.41602]
[1725459466373,0.00623208,2404.1,2403.6,0.41604]
[1725459466574,0.00623208,2404.1,2403.5,0.41607]
[1725459466778,0.00623208,2404.1,2403.3,3.8856]
[1725459467179,0.00623208,2404.1,2404.0,0.41599]
[1725459467480,0.00623208,2404.1,2404.0,4.57599]
[1725459467671,0.00623208,2404.1,2403.6,4.24794]
[1725459467672,0.00623208,2404.1,2403.6,3.2078]
[1725459467873,0.00623208,2404.1,2403.3,3.8856]
[1725459468179,0.00623208,2404.1,2404.0,0.41599]
[1725459468680,0.00623208,2404.1,2404.0,4.57599]
[1725459468878,0.00623208,2404.1,2404.0,14.82377]
[1725459469178,3.2078,2405.0,2404.0,13.3678]
[1725459469373,3.2078,2404.7,2403.9,0.41599]
[1725459469683,3.62367,2404.7,2404.1,0.41596]
[1725459469989,1.03951,2405.1,2404.2,0.00623208]
[1725459469990,0.00623208,2404.6,2404.2,0.00623208]
[1725459471282,0.00623208,2404.6,2404.4,0.41591]
[1725459471474,0.00623208,2404.6,2404.2,0.00623208]
[1725459471677,0.00623208,2404.6,2404.4,0.41591]
[1725459471973,0.00623208,2404.6,2404.2,0.00623208]
[1725459472173,0.00623208,2404.6,2404.5,0.4159]
[1725459472477,0.00623208,2404.6,2404.2,0.00623208]
[1725459472973,0.00623208,2404.6,2404.4,0.41591]
[1725459473178,0.00623208,2404.6,2404.2,0.00623208]
[1725459473676,0.00623208,2404.6,2404.5,0.4159]
[1725459473880,0.00623208,2404.6,2404.5,7.7821]
[1725459474380,0.00623208,2404.6,2404.5,4.5743]
[1725459474680,15.15463208,2404.6,2404.2,0.00623208]
[1725459474874,15.15463208,2404.6,2403.7,0.41603]
[1725459474875,8.1978,2404.3,2402.8,3.2078]
[1725459475077,3.62383,2403.8,2402.9,0.203216]
[1725459475273,0.41605,2403.7,2402.9,0.203216]
[1725459475472,3.2078,2403.4,2402.6,1.7617]
[1725459475672,4.99,2403.4,2402.5,3.21130071]
[1725459475884,3.62393,2403.2,2402.5,0.00350071]
[1725459476073,0.41615,2403.1,2402.5,0.00350071]
[1725459476274,3.2078,2402.6,2401.7,3.2078]
[1725459476485,5.40622,2402.7,2401.7,3.2078]
[1725459476670,0.41626,2402.5,2401.7,3.2078]
[1725459476873,3.2078,2402.6,2401.7,3.2078]
[1725459477104,1.04657208,2403.2,2402.1,3.62411]
[1725459477105,3.2078,2402.9,2402.1,3.62411]
[1725459477280,3.2078,2402.6,2401.5,3.2078]
[1725459477578,3.2078,2402.9,2402.1,0.41632]
[1725459477779,3.2078,2402.9,2401.8,3.2078]
[1725459477976,0.00623208,2403.2,2402.4,3.2078]
[1725459478181,0.00623208,2403.2,2402.6,0.41622]
[1725459478383,3.2078,2403.0,2402.1,3.2078]
[1725459478679,0.00623208,2403.2,2402.5,0.41623]
[1725459478876,0.00623208,2403.2,2401.6,6.03101]
[1725459478877,0.00623208,2403.2,2402.7,0.41621]
[1725459479069,0.00623208,2403.2,2402.6,3.2078]
[1725459479270,0.00623208,2403.2,2402.9,0.41616]
[1725459479475,0.00623208,2403.2,2401.9,1.04087]
[1725459479476,0.00623208,2403.2,2402.4,3.41494136]
[1725459479878,0.00623208,2403.2,2402.9,0.41617]
[1725459480075,0.00623208,2403.2,2402.4,3.41494136]
[1725459480279,0.00623208,2403.2,2403.1,0.41614]
[1725459480478,0.41595,2404.3,2403.0,3.2078]
[1725459480479,3.2078,2404.3,2403.0,3.2078]
[1725459480695,4.99,2404.6,2403.0,3.2078]
[1725459480696,3.2078,2404.0,2403.0,3.2078]
[1725459480889,3.6238,2404.0,2403.1,0.41614]
[1725459481107,3.2078,2403.7,2402.5,3.2078]
[1725459481479,3.2078,2403.0,2402.9,0.00623208]
[1725459481678,3.21403208,2403.3,2402.9,0.00623208]
[1725459482083,3.62396,2403.0,2402.9,0.00623208]
[1725459482280,3.2078,2403.0,2401.7,0.4168]
[1725459482481,3.2078,2403.0,2401.5,3.2078]
[1725459482482,0.41624,2402.6,2401.5,3.2078]
[1725459482681,3.2078,2402.7,2401.7,0.41638]
[1725459482682,3.2078,2402.4,2401.7,0.41638]
[1725459482873,3.2078,2402.4,2401.9,0.41634]
[1725459483074,3.2078,2402.4,2401.4,0.6891]
[1725459483075,3.62407,2402.4,2401.4,0.6891]
[1725459483285,8.1978,2402.7,2401.5,3.2078]
[1725459483487,0.695,2402.9,2402.6,0.41623]
[1725459483686,0.695,2402.9,2401.6,1.04102]
[1725459483687,0.00623208,2403.3,2402.9,0.41617]
[1725459483994,0.00623208,2403.3,2402.4,3.42034365]
[1725459484189,0.00623208,2403.3,2403.2,0.41613]
[1725459484590,0.00623208,2403.3,2403.2,4.57693]
[1725459485093,0.695,2404.5,2403.2,11.61793]
[1725459485279,3.2078,2404.6,2403.5,3.2078]
[1725459485481,3.2078,2404.7,2403.8,3.2078]
[1725459485685,3.2078,2404.7,2404.1,0.41597]
[1725459485686,3.2078,2404.6,2404.1,0.41597]
[1725459485987,4.99,2404.8,2403.5,3.2078]
[1725459486181,4.99,2404.8,2404.0,0.41598]
[1725459486378,0.00623208,2404.4,2404.0,0.41598]
[1725459486795,0.00623208,2404.4,2404.1,0.41597]
[1725459486987,0.00623208,2404.4,2404.3,0.41594]
[1725459487186,3.2078,2405.3,2404.5,0.41589]
[1725459487388,4.99,2405.6,2404.1,3.2078]
[1725459487389,3.2078,2405.0,2404.1,3.2078]
[1725459487591,3.2078,2405.0,2403.9,0.00623208]
[1725459487592,3.2078,2405.3,2404.6,0.41588]
[1725459487890,3.2078,2405.3,2404.4,3.2078]
[1725459488391,0.00623208,2405.1,2404.4,3.2078]
[1725459488787,0.00623208,2405.1,2404.7,0.41585]
[1725459488993,0.00623208,2405.1,2404.4,3.2078]
[1725459488994,0.00623208,2405.1,2404.6,0.41588]
[1725459489392,0.00623208,2405.1,2404.4,3.2078]
[1725459489393,0.41584,2404.9,2404.4,3.2078]
[1725459489692,3.2078,2405.0,2404.4,3.62371]
[1725459489996,3.2078,2405.0,2404.4,3.2078]
[1725459490394,3.2078,2405.0,2404.4,3.62371]
[1725459491090,0.00623208,2405.1,2404.7,0.41586]
[1725459491294,0.00623208,2405.1,2404.4,3.2078]
[1725459491295,0.00623208,2405.1,2404.4,4.45171135]
[1725459491513,0.00623208,2405.1,2405.0,0.41582]
[1725459491889,0.00623208,2405.1,2405.0,4.57342]
[1725459492615,0.00623208,2405.1,2405.0,0.41582]
[1725459493287,0.00623208,2405.1,2404.9,0.41582]
[1725459493596,0.00623208,2405.1,2405.0,0.41582]
[1725459493999,3.2078,2406.1,2405.6,0.4157]
[1725459494294,3.2078,2406.1,2405.0,3.2078]
[1725459494295,0.41563,2406.1,2405.0,3.2078]
[1725459494501,22.7,2406.1,2405.0,3.2078]
[1725459494688,22.7,2406.1,2405.4,0.41574]
[1725459494993,22.7,2406.1,2405.5,0.41573]
[1725459495189,22.7,2406.1,2405.5,0.00623208]
[1725459495190,0.00623208,2406.0,2405.5,0.00623208]
[1725459495392,0.00623208,2406.0,2405.7,0.41569]
[1725459495591,0.00623208,2406.0,2405.9,0.41566]
[1725459495898,0.00623208,2406.0,2405.5,0.00623208]
[1725459495899,0.00623208,2406.0,2405.5,3.21403208]
[1725459496095,0.00623208,2406.0,2405.5,0.42195208]
[1725459496290,3.2078,2405.8,2405.5,0.00623208]
[1725459496497,0.00623208,2406.0,2405.5,0.00623208]
[1725459497499,0.00623208,2406.0,2405.9,0.41566]
[1725459498293,0.00623208,2406.0,2405.5,3.21403208]
[1725459498598,0.00623208,2406.0,2405.5,0.00623208]
[1725459498792,0.00623208,2406.0,2405.6,0.4157]
[1725459499193,0.00623208,2406.0,2405.5,0.00623208]
[1725459499393,4.1568,2405.9,2405.5,0.42195208]
[1725459499589,0.00623208,2406.0,2405.5,0.00623208]
[1725459499786,0.00623208,2406.0,2405.9,0.41566]
[1725459500202,0.00623208,2406.0,2405.6,0.4157]
[1725459500396,0.00623208,2406.0,2405.5,0.00623208]
[1725459500600,0.00623208,2406.0,2405.5,3.21403208]
[1725459500845,0.00623208,2406.0,2405.5,0.00623208]
[1725459500992,0.4157,2405.7,2405.5,0.00623208]
[1725459501208,3.62351,2405.6,2405.5,0.00623208]
[1725459501504,0.41571,2405.6,2405.5,0.00623208]
[1725459501806,4.57251,2405.6,2405.5,0.00623208]
[1725459501998,4.1568,2405.6,2405.5,0.00623208]
[1725459502307,0.41576,2405.4,2405.0,0.4158]
[1725459502801,0.41579,2405.2,2404.8,0.41584]
[1725459503018,0.41576,2405.4,2405.0,0.4158]
[1725459503301,0.4158,2405.2,2405.0,0.00623208]
[1725459503603,4.1576,2405.4,2405.1,0.4158]
[1725459503904,4.1576,2405.4,2405.0,0.00623208]
[1725459504205,4.57335,2405.4,2405.0,0.42204208]
[1725459504405,0.41575,2405.4,2405.1,0.41579]
[1725459504598,3.62347,2405.9,2405.1,4.2473]
[1725459504801,0.00623208,2406.0,2405.8,0.41567]
[1725459505099,0.00623208,2406.0,2405.8,0.41566]
[1725459505306,0.00623208,2406.0,2405.8,0.41567]
[1725459505794,0.00623208,2406.0,2405.7,0.41569]
[1725459505999,0.00623208,2406.0,2405.3,1.03942]
[1725459506195,0.42189208,2406.0,2405.1,1.03947]
[1725459506397,0.00623208,2406.0,2405.0,0.00623208]
[1725459506596,3.2078,2405.9,2405.0,0.00623208]
[1725459506804,3.2078,2405.6,2405.0,0.00623208]
[1725459506998,3.2078,2405.6,2405.0,0.42204208]
[1725459506999,0.41575,2405.4,2405.0,0.42204208]
[1725459507197,0.4158,2405.1,2405.0,0.00623208]
[1725459507704,0.4158,2405.1,2404.3,3.8707]
[1725459507705,0.41585,2404.8,2404.3,3.62372]
[1725459507901,3.62364,2404.9,2404.4,0.41591]
[1725459508100,0.41589,2404.6,2404.1,0.41596]
[1725459508424,0.41589,2404.6,2403.3,1.04024]
[1725459508425,0.41591,2404.5,2404.0,0.41598]
[1725459508599,3.62375,2404.3,2403.7,0.41603]
[1725459508796,3.2078,2404.3,2403.2,3.2078]
[1725459509007,1.08956,2404.2,2403.6,0.41605]
[1725459509196,0.6736,2404.2,2403.2,3.2078]
[1725459509401,0.6736,2404.2,2403.7,0.41604]
[1725459509402,0.6618,2404.1,2403.7,0.41604]
[1725459509607,0.6736,2404.2,2403.2,3.2078]
[1725459509901,4.99623208,2404.5,2403.9,0.416]
[1725459510102,4.99623208,2404.5,2404.0,0.41598]
[1725459510297,3.2078,2404.4,2403.6,0.41606]
[1725459510494,0.00623208,2404.5,2403.5,3.8988]
[1725459510703,3.2078,2404.4,2403.5,3.2078]
[1725459511302,0.41594,2404.3,2403.6,0.41605]
[1725459511530,3.2078,2404.4,2403.5,3.2078]
[1725459511802,4.99623208,2404.5,2403.8,0.41601]
[1725459511803,0.00623208,2404.5,2403.8,0.41601]
[1725459512005,0.00623208,2404.5,2403.5,3.2078]
[1725459512403,0.00623208,2404.5,2403.8,0.41601]
[1725459512605,0.41592,2404.4,2403.5,3.2078]
[1725459512809,3.2078,2404.4,2403.5,3.2078]
[1725459513005,0.41595,2404.3,2403.6,0.41605]
[1725459513205,3.2078,2404.4,2403.6,0.41605]
[1725459513206,0.41596,2404.2,2403.6,0.41605]
[1725459513401,4.99623208,2404.5,2403.5,3.2078]
[1725459513402,3.2078,2404.0,2403.5,3.2078]
[1725459513608,3.2078,2404.0,2402.9,0.89551671]
[1725459513917,3.2078,2403.7,2402.5,3.41187993]
[1725459514103,3.2078,2403.7,2402.9,0.41617]
[1725459514302,4.24791,2403.7,2402.5,3.2078]
[1725459514508,0.41607,2403.6,2402.5,3.2078]
[1725459514710,0.00623208,2403.3,2402.8,0.41618]
[1725459514917,0.00623208,2403.3,2402.5,0.41624]
[1725459515418,0.41615,2403.1,2402.5,0.41624]
[1725459515608,0.41615,2403.1,2402.3,0.7059]
[1725459515609,0.41616,2403.0,2402.3,0.7059]
[1725459515806,0.41619,2402.9,2402.3,0.41627]
[1725459516011,0.6964,2403.0,2402.2,3.2078]
[1725459516217,0.41619,2402.9,2402.3,0.41628]
[1725459516418,0.41619,2402.9,2402.3,0.41627]
[1725459516611,3.2078,2403.1,2402.2,3.2078]
[1725459517003,3.2078,2403.1,2402.6,0.41622]
[1725459517214,0.41621,2402.8,2402.2,3.62409]
[1725459517414,0.41621,2402.8,2401.8,0.653]
[1725459517415,0.41623,2402.6,2401.8,0.653]
[1725459517614,0.41623,2402.6,2402.0,0.41633]
[1725459517615,0.41624,2402.6,2402.0,0.41633]
[1725459517921,5.6864,2402.7,2401.8,0.653]
[1725459518120,5.697,2403.0,2401.8,0.653]
[1725459518417,0.41625,2402.5,2401.8,0.653]
[1725459518625,3.2078,2402.5,2401.9,0.41635]
[1725459518913,0.41624,2402.6,2401.9,0.41634]
[1725459519114,30.8978,2402.7,2401.8,0.653]